[Event "*** Titled Tuesday 3|2 Blitz"]
[Site "Chess.com"]
[Date "2015.10.06"]
[Round "7"]
[White "chesstatour"]
[Black "IM_Michal_Luch"]
[Result "1-0"]
[WhiteElo "1902"]
[BlackElo "2332"]
[TimeControl "180+2"]
[EndTime "18:28:20 PDT"]
[Termination "chesstatour won by checkmate"]

1. d4 {[%clk 0:03:01.9]} 1... Nf6 {[%clk 0:03:00.5]} 2. c4 {[%clk 0:03:03.4]}
2... e6 {[%clk 0:03:01.4]} 3. Nf3 {[%clk 0:03:02.6]} 3... d5 {[%clk 0:03:02]} 4.
g3 {[%clk 0:03:01.2]} 4... dxc4 {[%clk 0:03:01.9]} 5. Bg2 {[%clk 0:03:01.9]}
5... Bb4+ {[%clk 0:03:02.1]} 6. Bd2 {[%clk 0:03:00.3]} 6... a5 {[%clk
0:03:03.7]} 7. O-O {[%clk 0:03:00.3]} 7... O-O {[%clk 0:03:05]} 8. a3 {[%clk
0:02:40.5]} 8... Bxd2 {[%clk 0:03:05.4]} 9. Nbxd2 {[%clk 0:02:42.4]} 9... b5
{[%clk 0:03:06.4]} 10. Ne5 {[%clk 0:02:38.9]} 10... Ra6 {[%clk 0:02:52.6]} 11.
a4 {[%clk 0:02:30.2]} 11... c6 {[%clk 0:02:44.2]} 12. Ndf3 {[%clk 0:02:16.1]}
12... Nfd7 {[%clk 0:02:40.3]} 13. e3 {[%clk 0:01:33.8]} 13... Nb6 {[%clk
0:02:34.9]} 14. Nxc6 {[%clk 0:01:25.9]} 14... Nxc6 {[%clk 0:02:19.3]} 15. axb5
{[%clk 0:01:26.6]} 15... Ra7 {[%clk 0:02:18.6]} 16. bxc6 {[%clk 0:01:26.7]}
16... a4 {[%clk 0:02:17.1]} 17. Qc2 {[%clk 0:01:08.2]} 17... Ba6 {[%clk
0:02:07.6]} 18. Rfd1 {[%clk 0:01:03.8]} 18... Bb5 {[%clk 0:02:07.2]} 19. h4
{[%clk 0:00:20.4]} 19... f6 {[%clk 0:02:07.6]} 20. Qe4 {[%clk 0:00:18.5]} 20...
Qd6 {[%clk 0:02:06.6]} 21. Nd2 {[%clk 0:00:16.7]} 21... Rc8 {[%clk 0:02:03]} 22.
Bh3 {[%clk 0:00:16.9]} 22... f5 {[%clk 0:02:01.4]} 23. Qe5 {[%clk 0:00:07]}
23... Qxe5 {[%clk 0:02:01.9]} 24. dxe5 {[%clk 0:00:08.9]} 24... Bxc6 {[%clk
0:01:56.3]} 25. Bg2 {[%clk 0:00:09.9]} 25... Bxg2 {[%clk 0:01:57.1]} 26. Kxg2
{[%clk 0:00:11.8]} 26... Rc5 {[%clk 0:01:46.7]} 27. Nf3 {[%clk 0:00:12.6]} 27...
h6 {[%clk 0:01:44]} 28. Rd6 {[%clk 0:00:12.1]} 28... Nd5 {[%clk 0:01:40.2]} 29.
Rxe6 {[%clk 0:00:11.8]} 29... Rb5 {[%clk 0:01:41.5]} 30. Rd6 {[%clk 0:00:08.7]}
30... Raa5 {[%clk 0:01:37.7]} 31. Rd1 {[%clk 0:00:07.3]} 31... Nb4 {[%clk
0:01:25.3]} 32. R1d2 {[%clk 0:00:07.4]} 32... Nd3 {[%clk 0:01:24.3]} 33. e6
{[%clk 0:00:07.2]} 33... Kf8 {[%clk 0:01:11.8]} 34. Nd4 {[%clk 0:00:06.5]} 34...
Rxb2 {[%clk 0:01:07.3]} 35. Rxb2 {[%clk 0:00:05.6]} 35... Nxb2 {[%clk
0:01:08.6]} 36. Nc6 {[%clk 0:00:05.6]} 36... Ra8 {[%clk 0:00:59.9]} 37. e7+
{[%clk 0:00:06.5]} 37... Kf7 {[%clk 0:01:01]} 38. Rd8 {[%clk 0:00:07.8]} 38...
c3 {[%clk 0:00:52.6]} 39. e8=Q+ {[%clk 0:00:08.7]} 39... Kf6 {[%clk 0:00:53.1]}
40. Rd6# {[%clk 0:00:09.3]} 1-0

[Event "*** Titled Tuesday 3|2 Blitz"]
[Site "Chess.com"]
[Date "2015.10.06"]
[Round "7"]
[White "Iball95"]
[Black "Goala"]
[Result "0-1"]
[WhiteElo "2328"]
[BlackElo "2177"]
[TimeControl "180+2"]
[EndTime "18:28:32 PDT"]
[Termination "Goala won by checkmate"]

1. e4 {[%clk 0:02:55.9]} 1... e6 {[%clk 0:03:00.4]} 2. d4 {[%clk 0:02:55.8]}
2... d5 {[%clk 0:03:02.1]} 3. Nc3 {[%clk 0:02:57.2]} 3... Nf6 {[%clk 0:03:03.3]}
4. Bg5 {[%clk 0:02:57.1]} 4... Be7 {[%clk 0:03:04.6]} 5. e5 {[%clk 0:02:57.7]}
5... Nfd7 {[%clk 0:03:06.3]} 6. h4 {[%clk 0:02:58.7]} 6... O-O {[%clk
0:03:07.4]} 7. Bd3 {[%clk 0:02:49.1]} 7... c5 {[%clk 0:03:07.1]} 8. Nf3 {[%clk
0:02:46]} 8... cxd4 {[%clk 0:03:06.7]} 9. Ne2 {[%clk 0:02:46]} 9... Nc6 {[%clk
0:03:05.4]} 10. Nexd4 {[%clk 0:02:37]} 10... Nxd4 {[%clk 0:02:44]} 11. Nxd4
{[%clk 0:02:38.9]} 11... Nxe5 {[%clk 0:02:45.6]} 12. Bxe7 {[%clk 0:02:39.1]}
12... Qxe7 {[%clk 0:02:47.5]} 13. Bxh7+ {[%clk 0:01:51.5]} 13... Kxh7 {[%clk
0:02:49.4]} 14. Qh5+ {[%clk 0:01:52.5]} 14... Kg8 {[%clk 0:02:50.6]} 15. Qxe5
{[%clk 0:01:54.1]} 15... Qb4+ {[%clk 0:02:43]} 16. Kf1 {[%clk 0:01:52.7]} 16...
Qxb2 {[%clk 0:02:42.4]} 17. Rd1 {[%clk 0:01:52.8]} 17... f6 {[%clk 0:02:22.9]}
18. Qe2 {[%clk 0:01:43.1]} 18... Bd7 {[%clk 0:02:11.4]} 19. Kg1 {[%clk
0:01:10.3]} 19... Rac8 {[%clk 0:02:10.8]} 20. h5 {[%clk 0:01:06.7]} 20... e5
{[%clk 0:02:11.8]} 21. h6 {[%clk 0:00:58.8]} 21... g6 {[%clk 0:01:23.3]} 22. Nf3
{[%clk 0:00:46.1]} 22... Qxc2 {[%clk 0:01:00.9]} 23. Rd2 {[%clk 0:00:28.2]}
23... Qc1+ {[%clk 0:00:47.4]} 24. Rd1 {[%clk 0:00:27.6]} 24... Qc4 {[%clk
0:00:42.9]} 25. Qb2 {[%clk 0:00:26.4]} 25... Qc2 {[%clk 0:00:32.5]} 26. Qa1
{[%clk 0:00:27.5]} 26... d4 {[%clk 0:00:29.2]} 27. h7+ {[%clk 0:00:22.2]} 27...
Kh8 {[%clk 0:00:29.3]} 28. Kh2 {[%clk 0:00:19.6]} 28... Kxh7 {[%clk 0:00:24.9]}
29. Rc1 {[%clk 0:00:17.9]} 29... Qxf2 {[%clk 0:00:16.7]} 30. Qb1 {[%clk
0:00:18.2]} 30... Kg7 {[%clk 0:00:15.3]} 31. Ng1 {[%clk 0:00:08.9]} 31... Rh8+
{[%clk 0:00:12.6]} 32. Nh3 {[%clk 0:00:09.5]} 32... Rxh3# {[%clk 0:00:12.3]} 0-1

[Event "*** Titled Tuesday 3|2 Blitz"]
[Site "Chess.com"]
[Date "2015.10.06"]
[Round "7"]
[White "Jahonas"]
[Black "dsanchez1973"]
[Result "1-0"]
[WhiteElo "2066"]
[BlackElo "1957"]
[TimeControl "180+2"]
[EndTime "18:28:54 PDT"]
[Termination "Jahonas won by resignation"]

1. d4 {[%clk 0:03:01.9]} 1... d5 {[%clk 0:02:58.6]} 2. Nf3 {[%clk 0:03:02.3]}
2... c6 {[%clk 0:02:59.4]} 3. g3 {[%clk 0:03:03.7]} 3... g6 {[%clk 0:03:00]} 4.
Bg2 {[%clk 0:03:05.1]} 4... Bg7 {[%clk 0:03:01.8]} 5. O-O {[%clk 0:03:06.1]}
5... Nd7 {[%clk 0:03:02.8]} 6. b3 {[%clk 0:03:07.2]} 6... e5 {[%clk 0:03:03.6]}
7. Bb2 {[%clk 0:03:04]} 7... e4 {[%clk 0:03:04.5]} 8. Nfd2 {[%clk 0:03:01.9]}
8... Ne7 {[%clk 0:03:05.2]} 9. e3 {[%clk 0:03:03.1]} 9... O-O {[%clk 0:03:05.7]}
10. c4 {[%clk 0:03:04.2]} 10... f5 {[%clk 0:03:04.1]} 11. Ba3 {[%clk 0:03:04.2]}
11... Rf7 {[%clk 0:03:03.3]} 12. Bxe7 {[%clk 0:03:03.1]} 12... Qxe7 {[%clk
0:03:04.1]} 13. cxd5 {[%clk 0:03:04.3]} 13... cxd5 {[%clk 0:03:04.9]} 14. Nc3
{[%clk 0:03:05.6]} 14... Nf6 {[%clk 0:03:04.7]} 15. Rc1 {[%clk 0:03:05.1]} 15...
Be6 {[%clk 0:03:04.5]} 16. Nb5 {[%clk 0:02:58.5]} 16... a6 {[%clk 0:03:02.3]}
17. Nc7 {[%clk 0:02:53]} 17... Rc8 {[%clk 0:03:01.3]} 18. Nxe6 {[%clk 0:02:54]}
18... Qxe6 {[%clk 0:03:02.2]} 19. Rxc8+ {[%clk 0:02:50]} 19... Qxc8 {[%clk
0:03:02.5]} 20. b4 {[%clk 0:02:39.9]} 20... Rc7 {[%clk 0:03:03]} 21. Nb3 {[%clk
0:02:33.4]} 21... b6 {[%clk 0:03:03]} 22. a4 {[%clk 0:02:30.4]} 22... Bf8 {[%clk
0:03:02.4]} 23. a5 {[%clk 0:02:22.8]} 23... bxa5 {[%clk 0:03:00.7]} 24. bxa5
{[%clk 0:02:21.7]} 24... Bb4 {[%clk 0:02:59.4]} 25. Qa1 {[%clk 0:02:18]} 25...
Nd7 {[%clk 0:02:47]} 26. Nc5 {[%clk 0:02:03.4]} 26... Nxc5 {[%clk 0:02:47.1]}
27. dxc5 {[%clk 0:02:03.5]} 27... Rxc5 {[%clk 0:02:47.6]} 28. Rb1 {[%clk
0:01:55.1]} 28... Bxa5 {[%clk 0:02:41.8]} 29. Bf1 {[%clk 0:01:52.6]} 29... Bc3
{[%clk 0:02:28.4]} 30. Qxa6 {[%clk 0:01:51.5]} 30... Qxa6 {[%clk 0:02:29.2]} 31.
Bxa6 {[%clk 0:01:53.4]} 31... d4 {[%clk 0:02:30]} 32. exd4 {[%clk 0:01:53.8]}
32... Bxd4 {[%clk 0:02:30.6]} 33. Rd1 {[%clk 0:01:50.2]} 33... Bf6 {[%clk
0:02:19.4]} 34. Rd7 {[%clk 0:01:45.8]} 34... Re5 {[%clk 0:02:10]} 35. Bc4+
{[%clk 0:01:44.5]} 35... Kf8 {[%clk 0:01:57.7]} 36. Rf7+ {[%clk 0:01:43.7]}
36... Ke8 {[%clk 0:01:58.4]} 37. Rxf6 {[%clk 0:01:44.7]} 37... e3 {[%clk
0:01:58.6]} 38. fxe3 {[%clk 0:01:45.1]} 38... Rxe3 {[%clk 0:01:59.4]} 39. Rf7
{[%clk 0:01:34.2]} 39... h6 {[%clk 0:01:59.2]} 40. Rh7 {[%clk 0:01:33.4]} 40...
f4 {[%clk 0:01:58.3]} 41. Bf7+ {[%clk 0:01:30.1]} 41... Kf8 {[%clk 0:01:58.7]}
42. Bxg6 {[%clk 0:01:08.9]} 42... fxg3 {[%clk 0:01:59.1]} 43. h4 {[%clk
0:01:09.1]} 43... Kg8 {[%clk 0:01:52.8]} 44. h5 {[%clk 0:01:08]} 44... Re5
{[%clk 0:01:41.9]} 45. Rxh6 {[%clk 0:01:05.3]} 45... Kg7 {[%clk 0:01:40.6]} 46.
Rh7+ {[%clk 0:01:06.1]} 46... Kf6 {[%clk 0:01:37.7]} 47. Kg2 {[%clk 0:01:05.8]}
47... Re3 {[%clk 0:01:33.9]} 48. Ra7 {[%clk 0:00:53]} 48... Kg5 {[%clk
0:01:33.7]} 49. Ra5+ {[%clk 0:00:52.8]} 49... Kh6 {[%clk 0:01:34.3]} 50. Bf7
{[%clk 0:00:36.9]} 50... Rd3 {[%clk 0:01:30.6]} 51. Be6 {[%clk 0:00:34]} 51...
Re3 {[%clk 0:01:27.8]} 52. Bg4 {[%clk 0:00:34.7]} 52... Rc3 {[%clk 0:01:27.2]}
53. Bf3 {[%clk 0:00:35.5]} 53... Rb3 {[%clk 0:01:16]} 54. Kxg3 {[%clk
0:00:35.6]} 54... Rb4 {[%clk 0:01:15.8]} 55. Bg4 {[%clk 0:00:33.6]} 55... Rb3+
{[%clk 0:01:15]} 56. Kh4 {[%clk 0:00:34.3]} 56... Rb1 {[%clk 0:01:16]} 57. Ra6+
{[%clk 0:00:34.8]} 57... Kg7 {[%clk 0:01:16.1]} 58. h6+ {[%clk 0:00:34.8]} 58...
Kh7 {[%clk 0:01:15.7]} 59. Bf5+ {[%clk 0:00:34.8]} 1-0

[Event "*** Titled Tuesday 3|2 Blitz"]
[Site "Chess.com"]
[Date "2015.10.06"]
[Round "7"]
[White "MFBerna"]
[Black "Noukii"]
[Result "0-1"]
[WhiteElo "2149"]
[BlackElo "2550"]
[TimeControl "180+2"]
[EndTime "18:29:19 PDT"]
[Termination "Noukii won by resignation"]

1. e4 {[%clk 0:03:01.9]} 1... Nf6 {[%clk 0:03:00.4]} 2. e5 {[%clk 0:03:02.7]}
2... Nd5 {[%clk 0:03:01.6]} 3. d4 {[%clk 0:03:03.9]} 3... d6 {[%clk 0:03:02.9]}
4. Nf3 {[%clk 0:03:05.4]} 4... g6 {[%clk 0:03:04.1]} 5. Be2 {[%clk 0:03:06.4]}
5... Bg7 {[%clk 0:03:04.6]} 6. O-O {[%clk 0:03:07.9]} 6... O-O {[%clk
0:03:05.8]} 7. c4 {[%clk 0:03:08.5]} 7... Nb6 {[%clk 0:03:07.1]} 8. h3 {[%clk
0:03:08.6]} 8... Nc6 {[%clk 0:03:08.5]} 9. exd6 {[%clk 0:03:08]} 9... cxd6
{[%clk 0:03:10.4]} 10. Nc3 {[%clk 0:03:05]} 10... Bf5 {[%clk 0:03:11.5]} 11. Be3
{[%clk 0:02:53.3]} 11... d5 {[%clk 0:03:12.6]} 12. b3 {[%clk 0:02:49.1]} 12...
dxc4 {[%clk 0:03:13.1]} 13. bxc4 {[%clk 0:02:49]} 13... Na5 {[%clk 0:03:14.6]}
14. c5 {[%clk 0:02:42]} 14... Nd5 {[%clk 0:03:12.8]} 15. Bd2 {[%clk 0:02:25.1]}
15... Nc6 {[%clk 0:03:11.1]} 16. Bc4 {[%clk 0:02:18]} 16... Be6 {[%clk
0:03:02.2]} 17. Qe2 {[%clk 0:02:00.8]} 17... Nxd4 {[%clk 0:02:52.3]} 18. Nxd4
{[%clk 0:02:01.9]} 18... Bxd4 {[%clk 0:02:53.9]} 19. Rac1 {[%clk 0:01:52.9]}
19... Nxc3 {[%clk 0:02:42.7]} 20. Bxc3 {[%clk 0:01:53.6]} 20... Bxc4 {[%clk
0:02:44.3]} 21. Qxc4 {[%clk 0:01:53.3]} 21... Bxc3 {[%clk 0:02:45.8]} 22. Rxc3
{[%clk 0:01:55.1]} 22... Rc8 {[%clk 0:02:40.2]} 23. Rb1 {[%clk 0:01:54.1]} 23...
b6 {[%clk 0:02:39.1]} 24. c6 {[%clk 0:01:53.5]} 24... Rc7 {[%clk 0:02:32]} 25.
Rbc1 {[%clk 0:01:40.6]} 25... Qd6 {[%clk 0:02:26]} 26. Rd3 {[%clk 0:01:38.7]}
26... Rxc6 {[%clk 0:02:26.2]} 27. Qxc6 {[%clk 0:01:12.9]} 27... Qxd3 {[%clk
0:02:26.4]} 28. Qc7 {[%clk 0:01:14.8]} 28... Qd2 {[%clk 0:02:25.4]} 29. Rc2
{[%clk 0:01:12.2]} 29... Qd1+ {[%clk 0:02:22.2]} 30. Kh2 {[%clk 0:01:13.2]}
30... e6 {[%clk 0:02:17.9]} 31. Rc6 {[%clk 0:00:58.3]} 31... Qd5 {[%clk
0:02:09.6]} 32. Rc2 {[%clk 0:00:50]} 32... Rd8 {[%clk 0:01:33.5]} 33. Qe7 {[%clk
0:00:40.7]} 33... Qd6+ {[%clk 0:01:29.3]} 34. Qxd6 {[%clk 0:00:35.4]} 34... Rxd6
{[%clk 0:01:31.2]} 35. Rc7 {[%clk 0:00:30.9]} 35... Rd2 {[%clk 0:01:30.7]} 36.
Rxa7 {[%clk 0:00:25.4]} 36... Rxf2 {[%clk 0:01:31.5]} 37. Kg3 {[%clk 0:00:25.9]}
37... Rb2 {[%clk 0:01:31]} 38. Rb7 {[%clk 0:00:25.5]} 38... Rxa2 {[%clk
0:01:30.6]} 39. Rxb6 {[%clk 0:00:26.7]} 39... Kg7 {[%clk 0:01:30.9]} 40. Rb7
{[%clk 0:00:23.8]} 40... g5 {[%clk 0:01:31.4]} 41. Kf3 {[%clk 0:00:24.3]} 41...
h5 {[%clk 0:01:31]} 42. Rc7 {[%clk 0:00:24.3]} 42... Kg6 {[%clk 0:01:30.6]} 43.
Rb7 {[%clk 0:00:22.3]} 43... f6 {[%clk 0:01:29.9]} 44. Rb8 {[%clk 0:00:20.9]}
44... g4+ {[%clk 0:01:18.8]} 45. hxg4 {[%clk 0:00:21.5]} 45... Ra3+ {[%clk
0:01:18.8]} 46. Kf2 {[%clk 0:00:19.3]} 46... hxg4 {[%clk 0:01:19.5]} 47. Re8
{[%clk 0:00:18]} 47... e5 {[%clk 0:01:19.6]} 48. Re6 {[%clk 0:00:16.5]} 48...
Kf5 {[%clk 0:01:19.7]} 49. Rb6 {[%clk 0:00:17.3]} 49... g3+ {[%clk 0:01:18.7]}
50. Ke2 {[%clk 0:00:17.8]} 50... Kg5 {[%clk 0:01:20.1]} 51. Rb8 {[%clk
0:00:16.9]} 51... f5 {[%clk 0:01:20.7]} 52. Re8 {[%clk 0:00:15]} 52... Kf4
{[%clk 0:01:18.9]} 53. Re7 {[%clk 0:00:10.5]} 53... Ra2+ {[%clk 0:01:18.3]} 54.
Kf1 {[%clk 0:00:11]} 54... e4 {[%clk 0:01:19.9]} 55. Re8 {[%clk 0:00:11.3]}
55... Ke3 {[%clk 0:01:20.1]} 0-1

[Event "*** Titled Tuesday 3|2 Blitz"]
[Site "Chess.com"]
[Date "2015.10.06"]
[Round "7"]
[White "simplerXiao"]
[Black "3f32"]
[Result "1-0"]
[WhiteElo "2432"]
[BlackElo "2273"]
[TimeControl "180+2"]
[EndTime "18:29:21 PDT"]
[Termination "simplerXiao won by checkmate"]

1. e4 {[%clk 0:02:53.1]} 1... e5 {[%clk 0:02:57.6]} 2. Nf3 {[%clk 0:02:53.6]}
2... Nc6 {[%clk 0:02:54.6]} 3. d4 {[%clk 0:02:53.5]} 3... exd4 {[%clk
0:02:55.4]} 4. Nxd4 {[%clk 0:02:55.4]} 4... Nf6 {[%clk 0:02:56.8]} 5. Nxc6
{[%clk 0:02:54.7]} 5... bxc6 {[%clk 0:02:58.7]} 6. e5 {[%clk 0:02:54.8]} 6...
Qe7 {[%clk 0:03:00.2]} 7. Qe2 {[%clk 0:02:53.4]} 7... Nd5 {[%clk 0:03:01.8]} 8.
c4 {[%clk 0:02:52.1]} 8... Nb6 {[%clk 0:03:02]} 9. Nc3 {[%clk 0:02:52.1]} 9...
Ba6 {[%clk 0:03:02]} 10. Qe4 {[%clk 0:02:52.3]} 10... Qe6 {[%clk 0:03:02.1]} 11.
Be2 {[%clk 0:02:39.4]} 11... Bxc4 {[%clk 0:03:00.5]} 12. Bg4 {[%clk 0:02:31.6]}
12... Qg6 {[%clk 0:02:58]} 13. Bf5 {[%clk 0:02:32.3]} 13... Qh5 {[%clk 0:02:50]}
14. Bf4 {[%clk 0:02:21.2]} 14... Bc5 {[%clk 0:02:44.5]} 15. g4 {[%clk
0:02:00.7]} 15... Qh4 {[%clk 0:02:39]} 16. Bg3 {[%clk 0:01:56.6]} 16... Qe7
{[%clk 0:02:39.5]} 17. O-O-O {[%clk 0:01:53.2]} 17... g6 {[%clk 0:02:39.1]} 18.
Bxd7+ {[%clk 0:01:50.1]} 18... Nxd7 {[%clk 0:02:31.3]} 19. Qxc4 {[%clk
0:01:49.4]} 19... O-O {[%clk 0:02:27.5]} 20. Rxd7 {[%clk 0:01:47.6]} 20... Qxd7
{[%clk 0:02:29.4]} 21. Qxc5 {[%clk 0:01:48.7]} 21... Qxg4 {[%clk 0:02:30]} 22.
Re1 {[%clk 0:01:41.6]} 22... h5 {[%clk 0:02:25.8]} 23. Ne4 {[%clk 0:01:41.1]}
23... Kg7 {[%clk 0:02:21.6]} 24. h4 {[%clk 0:01:38.9]} 24... Qe6 {[%clk
0:02:20.4]} 25. Kb1 {[%clk 0:01:31.7]} 25... Rab8 {[%clk 0:02:20.1]} 26. Ng5
{[%clk 0:01:26.2]} 26... Qf5+ {[%clk 0:02:17.7]} 27. Qc2 {[%clk 0:01:24.6]}
27... Qd7 {[%clk 0:02:14.4]} 28. Rd1 {[%clk 0:01:23.6]} 28... Qe7 {[%clk
0:02:13.4]} 29. Qc3 {[%clk 0:01:23.6]} 29... Rb5 {[%clk 0:02:08.3]} 30. Ne4
{[%clk 0:01:19]} 30... Qe6 {[%clk 0:02:03.9]} 31. Nc5 {[%clk 0:01:13.7]} 31...
Qf5+ {[%clk 0:02:02.6]} 32. Ka1 {[%clk 0:01:14.6]} 32... Rfb8 {[%clk 0:01:58.9]}
33. b3 {[%clk 0:01:09.4]} 33... Kg8 {[%clk 0:01:53.5]} 34. Nd7 {[%clk
0:01:06.1]} 34... Rc8 {[%clk 0:01:43.4]} 35. Nf6+ {[%clk 0:01:00.5]} 35... Kg7
{[%clk 0:01:44.1]} 36. Qxc6 {[%clk 0:00:57.9]} 36... Rb6 {[%clk 0:01:44.2]} 37.
Qc3 {[%clk 0:00:56.3]} 37... Qe6 {[%clk 0:01:27.7]} 38. Ne4 {[%clk 0:00:53.7]}
38... Rc6 {[%clk 0:01:22.6]} 39. Qd4 {[%clk 0:00:51.1]} 39... Qg4 {[%clk
0:01:21.1]} 40. e6+ {[%clk 0:00:46.3]} 40... Kh6 {[%clk 0:01:17.2]} 41. exf7
{[%clk 0:00:43.3]} 41... Rf8 {[%clk 0:01:16.6]} 42. Qe3+ {[%clk 0:00:37.6]}
42... Kg7 {[%clk 0:01:16.5]} 43. Be5+ {[%clk 0:00:37.2]} 43... Kxf7 {[%clk
0:01:12.5]} 44. Ng5+ {[%clk 0:00:37.5]} 44... Kg8 {[%clk 0:01:11.7]} 45. Qd3
{[%clk 0:00:29.3]} 45... Rc5 {[%clk 0:00:17.8]} 46. Qxg6# {[%clk 0:00:26.6]} 1-0

[Event "*** Titled Tuesday 3|2 Blitz"]
[Site "Chess.com"]
[Date "2015.10.06"]
[Round "7"]
[White "Mornar1951"]
[Black "AlexanderL"]
[Result "0-1"]
[WhiteElo "2605"]
[BlackElo "2549"]
[TimeControl "180+2"]
[EndTime "18:29:54 PDT"]
[Termination "AlexanderL won by resignation"]

1. Nf3 {[%clk 0:03:01.9]} 1... d5 {[%clk 0:02:53.5]} 2. d4 {[%clk 0:03:01.9]}
2... Nf6 {[%clk 0:02:53.7]} 3. c4 {[%clk 0:03:02.9]} 3... e6 {[%clk 0:02:52.8]}
4. g3 {[%clk 0:03:03.9]} 4... Be7 {[%clk 0:02:52.8]} 5. Bg2 {[%clk 0:03:04.9]}
5... O-O {[%clk 0:02:53.4]} 6. O-O {[%clk 0:03:05.8]} 6... dxc4 {[%clk
0:02:54.3]} 7. Qc2 {[%clk 0:03:06.8]} 7... a6 {[%clk 0:02:55.2]} 8. a4 {[%clk
0:03:08]} 8... Bd7 {[%clk 0:02:55.9]} 9. Qxc4 {[%clk 0:03:08.8]} 9... Bc6 {[%clk
0:02:57.1]} 10. Bg5 {[%clk 0:03:10.3]} 10... Nbd7 {[%clk 0:02:57.3]} 11. Nc3
{[%clk 0:03:06.5]} 11... h6 {[%clk 0:02:58.2]} 12. Bxf6 {[%clk 0:03:06.6]} 12...
Nxf6 {[%clk 0:03:00.1]} 13. Rfe1 {[%clk 0:03:00.9]} 13... Bxf3 {[%clk 0:02:43]}
14. Bxf3 {[%clk 0:03:01.6]} 14... c6 {[%clk 0:02:44.3]} 15. e4 {[%clk
0:02:53.5]} 15... Qa5 {[%clk 0:02:42.6]} 16. d5 {[%clk 0:02:47.6]} 16... Nd7
{[%clk 0:02:43.3]} 17. dxc6 {[%clk 0:02:06.8]} 17... Ne5 {[%clk 0:02:33.1]} 18.
Qe2 {[%clk 0:02:07.3]} 18... Nxc6 {[%clk 0:02:25.1]} 19. e5 {[%clk 0:02:06]}
19... Nd4 {[%clk 0:02:25.4]} 20. Qd3 {[%clk 0:01:57.7]} 20... Rfd8 {[%clk
0:02:21.5]} 21. Rad1 {[%clk 0:01:49.5]} 21... Qb4 {[%clk 0:02:14.2]} 22. Kg2
{[%clk 0:01:35.7]} 22... Nxf3 {[%clk 0:01:47.3]} 23. Qxf3 {[%clk 0:01:37.6]}
23... Rac8 {[%clk 0:01:39.4]} 24. Rxd8+ {[%clk 0:01:11.8]} 24... Rxd8 {[%clk
0:01:39.3]} 25. Re2 {[%clk 0:01:04.9]} 25... Rd7 {[%clk 0:01:10]} 26. Qe4 {[%clk
0:01:03.7]} 26... Qxe4+ {[%clk 0:01:06.1]} 27. Nxe4 {[%clk 0:00:58.4]} 27... Rd4
{[%clk 0:01:06.2]} 28. b3 {[%clk 0:00:57.4]} 28... Kf8 {[%clk 0:01:01.2]} 29.
Kf3 {[%clk 0:00:40.4]} 29... Rd5 {[%clk 0:00:55.7]} 30. Nc3 {[%clk 0:00:30.4]}
30... Rc5 {[%clk 0:00:56.9]} 31. Re3 {[%clk 0:00:28.2]} 31... Bg5 {[%clk
0:00:57.8]} 32. Rd3 {[%clk 0:00:24.9]} 32... Ke7 {[%clk 0:00:31.8]} 33. Kg2
{[%clk 0:00:22.9]} 33... Bc1 {[%clk 0:00:27.6]} 34. f4 {[%clk 0:00:22.6]} 34...
g5 {[%clk 0:00:28.8]} 35. Ne2 {[%clk 0:00:21.5]} 35... Rc2 {[%clk 0:00:27.7]}
36. Kf3 {[%clk 0:00:22]} 36... g4+ {[%clk 0:00:28.9]} 37. Kf2 {[%clk 0:00:22.1]}
37... Ba3 {[%clk 0:00:30.1]} 38. Ke1 {[%clk 0:00:20.3]} 38... Bb4+ {[%clk
0:00:28.4]} 39. Kd1 {[%clk 0:00:21.6]} 39... Rb2 {[%clk 0:00:29.6]} 40. Rd4
{[%clk 0:00:20.9]} 40... a5 {[%clk 0:00:30]} 41. Nc1 {[%clk 0:00:19.6]} 41...
Rxh2 {[%clk 0:00:28.7]} 42. Nd3 {[%clk 0:00:20.7]} 42... Rd2+ {[%clk 0:00:26.7]}
43. Kc1 {[%clk 0:00:22]} 43... Bc3 {[%clk 0:00:21.2]} 44. f5 {[%clk 0:00:06.4]}
44... Bxd4 {[%clk 0:00:17.5]} 45. f6+ {[%clk 0:00:07.5]} 45... Kd7 {[%clk
0:00:18.6]} 46. Kxd2 {[%clk 0:00:09.4]} 46... Kc6 {[%clk 0:00:17.7]} 47. b4
{[%clk 0:00:10.5]} 47... axb4 {[%clk 0:00:17.4]} 48. Nxb4+ {[%clk 0:00:12.4]}
48... Kc5 {[%clk 0:00:18.8]} 49. Nd3+ {[%clk 0:00:12.8]} 49... Kd5 {[%clk
0:00:20]} 50. Ke2 {[%clk 0:00:13.7]} 50... Ke4 {[%clk 0:00:17.7]} 51. Nf2+
{[%clk 0:00:14.2]} 51... Bxf2 {[%clk 0:00:17.6]} 0-1